[Event "73rd Greek Championship 2024"]
[Site "Thessaloniki"]
[Date "2024.12.10"]
[Round "9.2"]
[White "Alexiadis, Hristos"]
[Black "Alexakis, Dimitris"]
[Result "1/2-1/2"]
[Annotator "TA"]
[ECO "D38"]
[WhiteElo "2341"]
[BlackElo "2520"]
[PlyCount "36"]
[EventDate "2024.12.02"]
[EventType "tourn"]
[EventCountry "GRE"]
[SourceTitle "playchess.com"]
[Source "ChessBase"]
[SourceQuality "1"]
[TimeControl "40/5400+30:1800+30"]

{[%evp 20,36,10,16,14,12,0,0,0,0,0,0,0,-3,0,0,0,-3,0]} 1. d4 {[%emt 0:04:03]} Nf6 {[%emt 0:00:12]} 2. c4 {[%emt 0:00:49]} e6 {[%emt 0:00:13]} 3. Nf3 {[%emt 0:00:26]} Bb4+ {[%emt 0:00:56]} 4. Nc3 {[%emt 0:04:13]} d5 {[%emt 0:03:02]} 5. Bg5 {[%emt 0:01:43]} h6 {[%emt 0:03:23]} 6. Bxf6 {[%emt 0:01:00]} Qxf6 {[%emt 0:00:10]} 7. e3 {[%emt 0:00:34]} O-O {[%emt 0:03:01]} 8. Rc1 {[%emt 0:01:29]} dxc4 {[%emt 0:01:36]} 9. Bxc4 {[%emt 0:00:40]} c5 {[%emt 0:01:55]} 10. O-O {[%emt 0:01:24]} cxd4 {[%emt 0:03:03]} 11. Nxd4 {[%emt 0:04:56]} Bd7 {[%emt 0:02:30][%cal Bc8d7,Bd7c6,Bc6d5][%mdl 32]} 12. Qb3 {[%emt 0:01:23]} Nc6 {[%emt 0:00:29]} 13. Nxc6 {[%emt 0:00:53]} Bxc3 {[%emt 0:00:15]} 14. Rxc3 {[%emt 0:00:39]} Bxc6 {[%emt 0:00:13]} 15. Bb5 {[%emt 0:01:41]} Bd5 {[%emt 0:00:48]} 16. Bc4 {[%emt 0:00:29]} Bc6 {[%emt 0:00:35]} 17. Bb5 {[%emt 0:00:09]} Bd5 {[%emt 0:00:10]} 18. Bc4 {[%emt 0:00:08]} Bc6 {[%emt 0:01:12]} 1/2-1/2

[Event "73rd Greek Championship 2024"]
[Site "Thessaloniki"]
[Date "2024.12.10"]
[Round "9.3"]
[White "Kolytas, Spiridon"]
[Black "Kourkoulos-Arditis, Stamatis"]
[Result "0-1"]
[Annotator "TA"]
[ECO "B07"]
[WhiteElo "1946"]
[BlackElo "2575"]
[PlyCount "74"]
[EventDate "2024.12.02"]
[EventType "tourn"]
[EventCountry "GRE"]
[SourceTitle "playchess.com"]
[Source "ChessBase"]
[SourceQuality "1"]
[TimeControl "40/5400+30:1800+30"]

{[%evp 9,74,12,19,17,13,13,7,9,11,9,39,26,33,24,44,30,76,30,38,3,47,44,39,55,86,70,86,83,81,69,112,121,200,105,260,255,235,162,196,173,168,100,128,128,129,-54,-17,-353,-398,-417,-388,-360,0,-432,-447,-424,-444,-1723,-1745,-1723,-1450,-1689,-1674,-1769,-1654,-1607,-1561]} 1. d4 {[%emt 0:00:10]} Nf6 {[%emt 0:00:09]} 2. Nf3 {[%emt 0:00:15]} g6 {[%emt 0:00:14]} 3. Nbd2 {[%emt 0:00:12]} Bg7 {[%emt 0:07:31]} 4. e4 {[%emt 0:00:11]} d6 {[%emt 0:00:03]} 5. Bb5+ {[%emt 0:00:18]} c6 {[%emt 0:00:25]} 6. Bd3 {[%emt 0:00:09]} O-O {[%emt 0:00:15][%cal Oe7e5]} 7. O-O {[%emt 0:00:19]} Nbd7 {[%emt 0:00:09]} 8. c3 {[%emt 0:03:14] The position is equal.} Qc7 {[%emt 0:01:55]} 9. a4 {[%emt 0:01:41]} e5 {[%emt 0:00:39]} 10. dxe5 {[%emt 0:02:49]} dxe5 {[%emt 0:01:10]} 11. b4 {[%emt 0:00:38]} b6 {[%emt 0:13:44]} 12. Re1 {[%emt 0:09:19]} a6 {[%emt 0:03:08]} (12... Rd8 $11 {might be stronger.}) 13. Bf1 {[%emt 0:08:29]} (13. a5 $16) 13... Bb7 {[%emt 0:01:48]} 14. Nc4 {[%emt 0:03:46]} Rad8 {[%emt 0:00:47]} (14... c5 $5) 15. Nfd2 {[%emt 0:04:07]} Rfe8 {[%emt 0:11:42]} 16. Qc2 {[%emt 0:04:57]} Nf8 {[%emt 0:05:59]} 17. f3 {[%emt 0:03:25]} Ne6 {[%emt 0:04:57]} 18. Nb3 {[%emt 0:01:24]} b5 {[%emt 0:00:52]} 19. Nca5 {[%emt 0:06:13]} Bc8 {[%emt 0:00:12]} 20. Be3 {[%emt 0:02:21]} Nf4 {[%emt 0:03:55]} (20... Bd7 $16) 21. Nc5 {[%emt 0:04:02]} (21. axb5 $18 cxb5 22. c4) 21... h5 $2 {[%emt 0:01:20]} (21... Nd7 $16) 22. c4 $18 {[%emt 0:03:09]} bxa4 {[%emt 0:00:53]} 23. Nxa4 {[%emt 0:01:23]} Rd4 {[%emt 0:03:28]} 24. Bxd4 {[%emt 0:06:06]} exd4 {[%emt 0:00:14]} 25. c5 {[%emt 0:00:31]} ({White should play} 25. Qd2 $18) 25... h4 {[%emt 0:02:18][%cal Od4d3]} 26. Nc4 {[%emt 0:02:44] Strongly threatening Nd6.} N6h5 {[%emt 0:02:36][%cal Od4d3]} 27. Nd6 $2 {[%emt 0:03:38]} (27. Nab2 $16) 27... d3 $1 $15 {[%emt 0:06:36][%mdl 1024] Black has compensation. Chess con chili.} 28. Qf2 {[%emt 0:10:23][%mdl 8192] [#]} (28. Nxe8 $2 Bd4+ $19) (28. Bxd3 $11 Bd4+ 29. Kf1 (29. Kh1 Ng3+ 30. hxg3 hxg3 $19)) 28... Qd8 $1 $19 {[%emt 0:00:46][%cal Od8g5] Threatens to win with ...Qg5!} 29. Ra2 {[%emt 0:07:35][%cal Of2e3] [#]} (29. Nxe8 Bd4 30. Rab1 Bxf2+ 31. Kxf2 d2 $19 (31... Qxe8 $2 32. Nb6 $19)) 29... Qg5 $1 {[%emt 0:05:23] aiming for ...Nh3+.} 30. Qe3 {[%emt 0:00:06] [#]} (30. Nxe8 $2 {is the wrong capture.} Nh3+ 31. Kh1 Nxf2+ 32. Rxf2 Bd4 $19) 30... Rf8 {[%emt 0:04:27]} (30... Be6 $1 $19 {[%cal Re6a2]} 31. Rd2 (31. Nxe8 $2 {loses.} Bxa2 32. Nxg7 d2 $19) 31... Rb8) 31. Nb6 $2 {[%emt 0:00:30][%mdl 8192]} (31. Bxd3 $11 {and White has nothing to worry.} Bh6 32. Nxc8 Rxc8 33. Kf1 (33. Bxa6 Ra8 $11)) 31... Be6 {[%emt 0:00:33] Black is clearly winning.} 32. Nbc4 {[%emt 0:01:35][%cal Oe4e5]} Bc3 {[%emt 0:06:54][%csl LRb4,LRe1] A strong pair of Bishops.} 33. Rb2 {[%emt 0:04:36]} (33. e5 $142 Rd8 (33... Bxb4 $2 34. Rea1 $19) 34. Ne4 Nh3+ 35. Kh1 Qxe3 36. Rxe3) 33... Bxc4 {[%emt 0:01:46]} 34. Nxc4 {[%emt 0:00:07]} Bxb2 {[%emt 0:00:06]} ({Weaker is} 34... Bxe1 35. Qxe1 Rd8 36. Rd2 $17) 35. Nxb2 {[%emt 0:00:11] [#]} d2 $1 {[%emt 0:00:06][%mdl 512]} 36. Re2 {[%emt 0:00:56]} (36. Kf2 dxe1=N) 36... Rd8 {[%emt 0:01:04]} 37. Nd1 {[%emt 0:00:25]} Rd3 {[%emt 0:00:18] Weighted Error Value: White=0.86/Black=0.52.  Loses game:     	White=2     	---        Missed win:     	---       	Black=1      Mistake:       	White=5     	Black=3      Inaccurate:     	White=2     	Black=3      OK:         	White=7     	Black=6      Best:        	White=2     	Black=1      Strong:       	---       	Black=1} 0-1

[Event "73rd Greek Championship 2024"]
[Site "Thessaloniki"]
[Date "2024.12.10"]
[Round "9.4"]
[White "Hadzimanolis, Antonios"]
[Black "Mitsis, Georgios"]
[Result "1/2-1/2"]
[Annotator "TA"]
[ECO "D38"]
[WhiteElo "2159"]
[BlackElo "2383"]
[PlyCount "47"]
[EventDate "2024.12.02"]
[EventType "tourn"]
[EventCountry "GRE"]
[SourceTitle "playchess.com"]
[Source "ChessBase"]
[SourceQuality "1"]
[TimeControl "40/5400+30:1800+30"]

{[%evp 11,47,25,18,4,20,0,0,0,-3,0,0,-17,-13,-18,-9,-62,-70,-52,-47,-47,-52,-52,-36,-28,-6,-13,-5,-30,-9,-31,0,-12,0,-27,0,-23,0,-29]} 1. d4 {[%emt 0:00:04]} Nf6 {[%emt 0:00:20]} 2. c4 {[%emt 0:00:11]} e6 {[%emt 0:00:10]} 3. Nf3 {[%emt 0:00:11]} d5 {[%emt 0:00:11]} 4. Nc3 {[%emt 0:00:20]} Bb4 {[%emt 0:00:38]} 5. Qa4+ {[%emt 0:00:24]} Nc6 {[%emt 0:00:09]} 6. e3 {[%emt 0:00:44]} O-O {[%emt 0:00:36]} 7. Be2 {[%emt 0:04:00]} a6 {[%emt 0:02:28]} 8. Qc2 {[%emt 0:02:46]} dxc4 {[%emt 0:00:26]} 9. Bxc4 {[%emt 0:00:41]} Bd6 {[%emt 0:00:14]} 10. a3 {[%emt 0:14:19]} e5 {[%emt 0:01:17]} 11. d5 {[%emt 0:02:26]} Ne7 {[%emt 0:01:03]} 12. O-O {[%emt 0:09:35][%cal Bh1f1,Bf1g1,Bg1g5][%mdl 32]} Bg4 {[%emt 0:06:21]} 13. e4 {[%emt 0:09:36]} ({White should play} 13. Nd2 $11) 13... Bxf3 $15 {[%emt 0:08:36]} 14. gxf3 {[%emt 0:00:11]} Qd7 {[%emt 0:00:11]} 15. Kh1 {[%emt 0:07:00]} Qh3 {[%emt 0:01:31]} 16. Rg1 {[%emt 0:01:19] Against Ng6} Nh5 {[%emt 0:21:11]} 17. Qd1 {[%emt 0:11:20]} Ng6 {[%emt 0:03:09]} (17... Nf4 {feels hotter.} 18. Be3 Qh5 19. Rc1 Rad8) 18. Bf1 {[%emt 0:03:22]} Qd7 {[%emt 0:00:26]} 19. Ne2 {[%emt 0:01:02]} Nh4 {[%emt 0:12:51]} 20. Rg5 {[%emt 0:04:34]} Nf6 {[%emt 0:06:14]} 21. Rg3 {[%emt 0:00:29]} Nh5 {[%emt 0:01:15]} 22. Rg5 {[%emt 0:00:06]} Nf6 {[%emt 0:00:50]} 23. Rg3 {[%emt 0:00:02]} Nh5 {[%emt 0:01:24]} 24. Rg5 {[%emt 0:27:48]} 1/2-1/2

[Event "73rd Greek Championship 2024"]
[Site "Thessaloniki"]
[Date "2024.12.10"]
[Round "9.5"]
[White "Kalogridis, Antonios"]
[Black "Stamatiou, Rodolfos"]
[Result "1-0"]
[Annotator "TA"]
[ECO "D31"]
[WhiteElo "2333"]
[BlackElo "2308"]
[PlyCount "95"]
[EventDate "2024.12.02"]
[EventType "tourn"]
[EventCountry "GRE"]
[SourceTitle "playchess.com"]
[Source "ChessBase"]
[SourceQuality "1"]
[TimeControl "40/5400+30:1800+30"]

{[%evp 30,95,16,0,31,19,19,8,25,37,52,0,19,0,0,0,0,0,0,0,0,0,0,0,0,0,0,-32,18,7,21,27,29,37,66,41,30,8,54,41,50,59,66,4,46,50,47,42,69,71,150,145,160,151,146,151,420,419,406,379,579,553,868,861,1816,1646,1930,1889]} 1. d4 {[%emt 0:00:01]} d5 {[%emt 0:02:25]} 2. c4 {[%emt 0:00:03]} e6 {[%emt 0:00:07]} 3. Nc3 {[%emt 0:00:02]} h6 {[%emt 0:01:28]} 4. cxd5 {[%emt 0:00:04]} exd5 {[%emt 0:00:04]} 5. Bf4 {[%emt 0:00:04]} Nf6 {[%emt 0:00:14]} 6. e3 {[%emt 0:00:04]} Bd6 {[%emt 0:00:10]} 7. Bxd6 {[%emt 0:00:04]} Qxd6 {[%emt 0:00:04]} 8. Bd3 {[%emt 0:00:05]} O-O {[%emt 0:00:44]} 9. Nge2 {[%emt 0:00:05]} c6 {[%emt 0:01:28]} 10. O-O {[%emt 0:00:58]} Re8 {[%emt 0:02:29]} 11. Ng3 {[%emt 0:04:54]} Nbd7 {[%emt 0:05:43]} 12. Nf5 {[%emt 0:02:49]} Qf8 {[%emt 0:02:27]} 13. Qf3 {[%emt 0:01:51]} g6 {[%emt 0:05:33]} 14. Ng3 {[%emt 0:00:44]} Kg7 {[%emt 0:01:06]} 15. h4 {[%emt 0:03:12]} h5 {[%emt 0:06:22]} 16. Qf4 {[%emt 0:00:21]} Nb6 {[%emt 0:02:33]} 17. Rae1 {[%emt 0:07:23]} Be6 {[%emt 0:06:33]} 18. Qg5 {[%emt 0:06:23]} Rad8 {[%emt 0:09:41]} 19. Nce2 {[%emt 0:03:23]} Nh7 {[%emt 0:05:47]} 20. Qf4 {[%emt 0:01:25]} (20. Nxh5+ $14 Kh8 21. Qe5+ f6 22. Nxf6 (22. Qc7 Re7 $17) 22... Qxf6 23. Qxf6+ Nxf6 24. Bxg6) 20... Nc8 {[%emt 0:03:26]} 21. f3 {[%emt 1:07:05]} Qd6 {[%emt 0:01:02]} 22. Qxd6 {[%emt 0:00:00]} Nxd6 {[%emt 0:00:19]} 23. b3 {[%emt 0:00:00]} Nf8 {[%emt 0:02:29]} 24. Nf4 {[%emt 0:00:00]} Bd7 {[%emt 0:03:53]} 25. e4 {[%emt 0:00:00]} dxe4 {[%emt 0:01:52]} 26. fxe4 {[%emt 0:00:00]} Bg4 {[%emt 0:01:09]} 27. e5 {[%emt 0:00:00]} Nc8 {[%emt 0:03:10]} 28. Bc4 {[%emt 0:00:00]} b5 {[%emt 0:06:48]} (28... Rxd4 $15 29. Bxf7 Re7) 29. Bxf7 {[%emt 0:00:00]} (29. Nfxh5+ Bxh5 30. Nxh5+ (30. Bxf7 Re7 $15) (30. Rxf7+ $2 Kg8 $19) 30... gxh5 $15) (29. Be2 $5) 29... Kxf7 {[%emt 0:01:54]} (29... Re7 $5 30. e6 Nd6 $14) 30. Nfxh5+ {[%emt 0:00:00]} Ke7 {[%emt 0:01:31]} 31. Nf6 {[%emt 0:00:00]} Rxd4 $1 {[%emt 0:00:54]} 32. Nxe8 {[%emt 0:00:00]} (32. Re4 $5 Rxe4 33. Ngxe4 $14) 32... Kxe8 {[%emt 0:00:01]} 33. Rf6 {[%emt 0:00:00]} Ne7 {[%emt 0:04:07]} (33... c5 $11 {was preferable.}) 34. Rd6 $1 $14 {[%emt 0:00:00]} Rf4 {[%emt 0:03:00]} (34... Ne6 $2 35. Rxd4 Nxd4 36. Re4 Nxb3 37. Rxg4 $18) 35. Ne4 {[%emt 0:00:00]} Bf5 {[%emt 0:04:31]} 36. Nf6+ {[%emt 0:00:00]} Kf7 {[%emt 0:00:04]} 37. g3 {[%emt 0:00:00]} Rf3 $1 {[%emt 0:02:28]} 38. Kg2 $1 {[%emt 0:00:00]} Rc3 {[%emt 0:01:28]} 39. g4 {[%emt 0:00:00]} Be6 {[%emt 0:03:01]} ({Black should play} 39... Bd3) 40. Rf1 $1 $16 {[%emt 0:00:00]} Kg7 {[%emt 0:00:00]} (40... Rc2+ 41. Kg1 Nc8 42. Nd7+ Ke7 43. Nxf8) 41. Rd8 {[%emt 0:00:00]} Nd5 {[%emt 0:08:18]} 42. Kg1 {[%emt 0:00:00]} Nxf6 $2 {[%emt 0:09:23]} (42... Ne3 $16) 43. Rxf6 $18 {[%emt 0:00:00]} Bf7 {[%emt 0:00:41] [#]} 44. h5 $1 {[%emt 0:00:00]} Rh3 {[%emt 0:05:08]} (44... Rg3+ 45. Kf2 Rxg4 46. h6+ (46. Rxc6 gxh5 47. Ra8 Re4 $17) 46... Kxh6 47. Rxf7 $18 (47. Rxf8 Bd5 $16)) (44... gxh5 {might work better.} 45. gxh5 Bxh5) 45. Kg2 $18 {[%emt 0:00:00]} (45. Rxc6 gxh5 46. gxh5 Rxh5 $17) 45... Rh4 {[%emt 0:00:06]} 46. Kg3 {[%emt 0:00:00]} (46. Rxc6 Rxg4+ (46... gxh5 47. gxh5 Rxh5 48. Kg3 $11) 47. Kf2 gxh5 $17) 46... Rh1 {[%emt 0:00:21] [#]} 47. Rxf8 $1 {[%emt 0:00:00]} ({Inferior is} 47. Rxc6 gxh5 48. Rdd6 h4+ (48... Rg1+ 49. Kf2 $17) 49. Kf2 Rh2+ 50. Ke3 Rh1 $11 (50... Rxa2 51. Rc7 $11)) 47... Kxf8 {[%emt 0:01:33]} 48. hxg6 {[%emt 0:00:00]} 1-0